Cogmind - Beta 17 @@@ ROGUE MODE // 2026.08.06 @ 20:08:09 Player: C-Log Result: Destroyed by LC-2PU(R) with Subdweller Laser Performance ------------- Evolutions (0) 0 Regions Visited (3) 600 Robots Destroyed (35) 175 Value Destroyed (861) 861 Prototype IDs (0) 0 Alien Tech Used (0) 0 Bonus (85) 85 TOTAL SCORE: 1721 Bonus ------- Follower Combat Kills 85 Cogmind --------- Core Integrity 0/250 Matter 275/300 Energy 85/125 System Corruption 0% Temperature Cool (77) Movement Rolling (110) Ox2 Location -10/Subcaves Parts ------- > --- POWER (1) -------- Light Ion Engine > --- PROPULSION (2) --- Wheel > --- UTILITY (2) ------ Medium Storage Unit Improved Terrain Scanner > --- WEAPON (2) ------- Subdweller Beam Cannon Subdweller Beam Cannon > --- INVENTORY (10) --- Spiked Treads Experimental Sensor Array ECM Suite Cobbler Unit Subdweller Machine Gun Barrage Gun Mining Laser Peak State ------------ > --- POWER ------------ Subdweller Power Source > --- PROPULSION ------- Subdweller Monowheel Subdweller Monowheel > --- UTILITY ---------- Medium Storage Unit Improved Terrain Scanner > --- WEAPON ----------- Subdweller Machine Gun Barrage Gun > --- INVENTORY -------- Experimental Sensor Array ECM Suite Subdweller Beam Cannon Mining Laser [Rating: 16] Favorites ----------- Power Ion Engine Engine Ion Engine Power Core Light Nuclear Core Propulsion Aluminum Leg Leg Aluminum Leg Wheel Subdweller Monowheel Utility Medium Storage Unit Device Seismic Detector Storage Medium Storage Unit Weapon Assault Rifle Energy Gun Medium Laser Energy Cannon Subdweller Beam Cannon Ballistic Gun Assault Rifle Ballistic Cannon Battle Cannon Launcher Rocket Launcher Special Weapon Mining Laser Build | -11 -10 -10 -10 ------- Run | Yrd Mat Min Sub Slots Evolved . | . . . . Power . | . . . . Propulsion . | . . . . Utility . | . . . . Weapon . | . . . . Parts Attached 39 | 7 . 7 25 Power 6 | 1 . 1 4 Engine 5 | 1 . 1 3 Core 1 | . . . 1 Reactor . | . . . . Propulsion 12 | 2 . 2 8 Treads . | . . . . Leg 7 | 2 . 2 3 Wheel 5 | . . . 5 Hover . | . . . . Flight . | . . . . Utility 5 | 2 . 3 . Device 3 | 1 . 2 . Storage 2 | 1 . 1 . Processor . | . . . . Hackware . | . . . . Protection . | . . . . Artifact . | . . . . Weapon 16 | 2 . 1 13 Energy Gun 1 | 1 . . . Energy Cannon 3 | . . . 3 Ballistic Gun 8 | 1 . 1 6 Ballistic Cannon 1 | . . . 1 Launcher 1 | . . . 1 Special Weapon 2 | . . . 2 Impact Weapon . | . . . . Slashing Weapon . | . . . . Piercing Weapon . | . . . . Special Melee Weapon . | . . . . Unidentified Prototypes . | . . . . Parts Lost 13 | . . 1 12 Power 1 | . . . 1 Propulsion 6 | . . . 6 Utility 1 | . . . 1 Weapon 5 | . . 1 4 Highest Loss Streak 9 | . . 1 9 To Critical Strikes 1 | . . . 1 Average Backups 7 | 4 7 7 7 Power . | . 1 . . Propulsion 1 | 2 2 2 1 Utility 3 | . 3 3 2 Weapon 2 | . 1 1 2 Tool/Special . | . . . . Unused Backups 13 | 1 4 4 4 Power 1 | . . 1 . Propulsion 4 | . 3 . 1 Utility 7 | . 1 3 3 Weapon 1 | 1 . . . Tool/Special . | . . . . Average Slot Usage (%) 95 | . 100 99 92 Engine 11 | . 14 14 9 Core 2 | . . . 3 Leg 23 | . 28 28 20 Wheel 3 | . . . 6 Device 11 | . 14 14 10 Storage 14 | . 14 14 14 Energy Gun 2 | . 14 . . Energy Cannon 2 | . . . 4 Ballistic Gun 19 | . 14 26 17 Ballistic Cannon 1 | . . . 3 Peak Build Rating 16 | 7 8 10 16 Average Rating 10 | 5 7 7 12 On Entrance 5 | . 7 8 8 Avg Prop Armor Cover (%) 5 | . . . 5 Naked Turns . | . . . . Heaviest Build 28 | 15 15 19 28 Greatest Support 40 | 20 20 20 40 Greatest Overweight (x) 4 | 1 . . 4 Average Overweight (x) . | . . . . Largest Inventory Capacity 10 | 8 8 10 10 Average Capacity 9 | 7 8 8 10 Most Carried 10 | 7 8 8 10 Average Carried 7 | 4 7 7 7 Final Capacity 10 | 8 8 10 10 Final Carried 8 | 6 8 7 8 Class Distribution -------------------- 68% | Scavenger-Mutant 31% | Mutant Dominant Class ---------------- Mutant | -10/Materials Scavenger-Mutant | -10/Mines Scavenger-Mutant | -10/Subcaves Resources | -11 -10 -10 -10 ----------- Run | Yrd Mat Min Sub Matter Collected 1031 | 315 48 117 551 Remotely . | . . . . Salvage Created 1069 | 190 156 159 564 Parts 73 | 18 11 14 30 Haulers Intercepted . | . . . . Recyclers Shooed 1 | 1 . . . Parts Field Recycled . | . . . . Retrieved Matter . | . . . . Parts Self-Destructed 2 | . . . 2 Prevented . | . . . . Parts Restored . | . . . . Kills | -11 -10 -10 -10 ------- Run | Yrd Mat Min Sub Combat Hostiles Destroyed 26 | . 5 7 14 Guns 18 | . 5 7 6 Cannons 4 | . . . 4 AOE 2 | . . . 2 Classes Destroyed 7 | 3 3 . 1 Worker 2 | 2 . . . Tunneler 5 | 5 . . . Recycler 1 | 1 . . . Watcher 1 | . 1 . . Swarmer 8 | . 3 5 . Grunt 4 | . 2 2 . Subdweller 14 | . . . 14 Best Kill Streak 5 | 5 4 4 4 Combat Bots Only 4 | . 3 4 4 Max Kills in Single Turn 2 | 1 1 2 1 Gunslinging 1 | . . 1 . Exploded 1 | . . . 1 Melee . | . . . . Uniques/NPCs Destroyed . | . . . . Combat | -11 -10 -10 -10 -------- Run | Yrd Mat Min Sub Hostile Shots Fired 133 | . 20 24 89 Missed 49 | . 10 8 31 Hits 84 | . 10 16 58 Projectile 84 | . 10 16 58 Critical Strikes 1 | . . . 1 Damage Taken 1574 | . 121 162 1291 Core 254 | . 33 . 221 Absorbed by Shields . | . . . . Regen/Repaired (Parts) 30 | . 30 . . Core Remaining (%) 100 | 100 . . . Volleys Fired 131 | 15 16 17 83 Largest 2 | 2 2 2 2 Hottest 160 | 70 70 70 160 Shots Fired 211 | 30 32 31 118 Gun 157 | 30 32 31 64 Cannon 29 | . . . 29 Launcher 6 | . . . 6 Special 19 | . . . 19 Kinetic 123 | 15 16 20 72 Thermal 82 | 15 16 11 40 Explosive 6 | . . . 6 Electromagnetic . | . . . . Robot Hit Streak 12 | 8 3 7 12 Robot Miss Streak 5 | 3 5 3 2 Penetration Max . | . . . . Secondary Targets 2 | . 1 1 . Max Gunslinging Chain 1 | . 1 1 . Shots Hit Robots 132 | 18 15 20 79 Core Hits 54 | 8 9 10 27 Critical Kills 3 | 1 . . 2 Critical Parts Destroyed . | . . . . Critical Strikes 4 | 2 . . 2 Burn 1 | 1 . . . Meltdown 2 | . . . 2 Destroy 1 | 1 . . . Melee Attacks . | . . . . Impact . | . . . . Slashing . | . . . . Piercing . | . . . . Sneak Attacks . | . . . . Combat Hostiles . | . . . . Follow-up Attacks . | . . . . Damage Inflicted 2364 | 237 202 244 1681 Guns 1474 | 237 202 244 791 Cannons 583 | . . . 583 Explosions 307 | . . . 307 Melee . | . . . . Ramming . | . . . . Kinetic 1304 | 125 114 157 908 Thermal 753 | 112 88 87 466 Explosive 307 | . . . 307 Electromagnetic . | . . . . Impact . | . . . . Slashing . | . . . . Piercing . | . . . . Highest Corruption . | . . . . Average Corruption . | . . . . Corruption Purged . | . . . . Corruption Blocked . | . . . . Overload Shots . | . . . . Overflow Damage 24 | . . . 24 Projectiles . | . . . . Explosions 24 | . . . 24 Melee . | . . . . Knockbacks 1 | . . . 1 Impact . | . . . . Kinetic 1 | . . . 1 Secondary . | . . . . Self-Inflicted Damage 32 | . . . 32 Shots 1 | . . . 1 Rammed . | . . . . Targets Rammed . | . . . . Kicked . | . . . . Crushed . | . . . . Highest Temperature 141 | 54 96 141 71 Average Temperature 39 | 17 36 70 21 Received Heat Transfer 273 | . 42 60 171 Siege Activations . | . . . . Martial Activations . | . . . . Shielding Activations . | . . . . Robots Disrupted . | . . . . Combat Hostiles . | . . . . Robots Corrupted . | . . . . Combat Hostiles . | . . . . Parts Fried . | . . . . Impact Corruptions . | . . . . Robots Melted 2 | . . . 2 Combat Hostiles 2 | . . . 2 Parts Melted 2 | . . . 2 Heat Transferred 1554 | 407 259 259 629 Parts Sabotaged . | . . . . Parts Stolen . | . . . . Parts Stripped . | . . . . Power Chain Reactions . | . . . . Alert | -11 -10 -10 -10 ------- Run | Yrd Mat Min Sub Maximum Alert Level . | . . . . Low Security (%) 100 | 100 100 100 . Level 1 . | . . . . Level 2 . | . . . . Level 3 . | . . . . Level 4 . | . . . . Level 5 . | . . . . High Security . | . . . . Max Security . | . . . . Peak Influence 77 | 10 77 70 . Initial . | . . . . Average 10 | 3 9 12 . Influence Increases 372 | 40 140 170 22 Destroy 0b10 Robot/C 260 | . 100 140 20 Destroy 0b10 Robot/NC 45 | 40 5 . . Destroy Leader 42 | . 22 20 . Allied During Kill 12 | . . 10 2 Successful Hack 13 | . 13 . . Influence Decreases 372 | 40 140 148 44 Entered New Map 12 | . . . 12 Time Decay 261 | 40 71 118 32 Lost Part 10 | . . 10 . Lost Ally 20 | . . 20 . Purge Threat 69 | . 69 . . Squads Dispatched . | . . . . Investigation . | . . . . Extermination . | . . . . Reinforcement . | . . . . Assault . | . . . . Garrison . | . . . . Intercept . | . . . . Searches Triggered . | . . . . Construction Impeded . | . . . . Haulers Reinforced . | . . . . Active Scanning Responses . | . . . . Cargo Convoy Interrupts . | . . . . Stealth | -11 -10 -10 -10 --------- Run | Yrd Mat Min Sub Distress Signals . | . . . . Communications Jammed . | . . . . Distress Signals . | . . . . Times Spotted 38 | . 11 8 19 Peak Tracking Total 6 | . 6 4 3 Tactical Retreats . | . . . . Traps | -11 -10 -10 -10 ------- Run | Yrd Mat Min Sub Traps Triggered . | . . . . Indirectly . | . . . . Trap Hack Attempts . | . . . . Triggered . | . . . . Disarmed . | . . . . Reprogrammed . | . . . . Reused . | . . . . Traps Extracted . | . . . . Installed . | . . . . Triggered . | . . . . Machines | -11 -10 -10 -10 ---------- Run | Yrd Mat Min Sub Machines Disabled . | . . . . Max in Single Turn . | . . . . Machines Repaired . | . . . . Machines Dismantled . | . . . . Machines Sabotaged . | . . . . Overloaded Fab Kills . | . . . . Hacking | -11 -10 -10 -10 --------- Run | Yrd Mat Min Sub Machines Accessed 9 | . 5 2 2 Terminals 5 | . 3 2 . Fabricators . | . . . . Repair Stations 1 | . 1 . . Recycling Units 1 | . 1 . . Scanalyzers . | . . . . Garrison Access . | . . . . Total Hacks 20 | . 13 4 3 Successful 11 | . 8 . 3 Failed 9 | . 5 4 . Catastrophic 3 | . . 3 . Database Lockouts . | . . . . Manual 11 | . 7 4 . Terminals 14 | . 10 4 . Fabricators . | . . . . Repair Stations 2 | . 2 . . Recycling Units 1 | . 1 . . Scanalyzers . | . . . . Garrison Access . | . . . . Terminal Hacks 8 | . 5 . 3 Record 2 | . 1 . 1 Open Door 1 | . . . 1 Branch Access Points 1 | . 1 . . Emergency Access Points 1 | . 1 . . Unreport Threat 1 | . 1 . . Locate Traps 1 | . 1 . . Release Object 1 | . . . 1 Fabricator Hacks . | . . . . Repair Station Hacks 2 | . 2 . . Scan Component 1 | . 1 . . Repair 1 | . 1 . . Recycling Unit Hacks 1 | . 1 . . Report Inventory 1 | . 1 . . Scanalyzer . | . . . . Garrison Access Hacks . | . . . . Unauthorized Hacks . | . . . . Terminals . | . . . . Fabricators . | . . . . Repair Stations . | . . . . Recycling Units . | . . . . Scanalyzers . | . . . . Garrison Access . | . . . . Data Cores Recovered . | . . . . Used . | . . . . Hacking Detections 5 | . 3 2 . Full Trace Events . | . . . . Feedback Events . | . . . . Feedback Blocked . | . . . . Robot Schematics Acquired . | . . . . Robots Built . | . . . . Authchips . | . . . . Time . | . . . . Total Robot Build Rating . | . . . . Part Schematics Acquired . | . . . . Parts Built . | . . . . Authchips . | . . . . Time . | . . . . Total Part Build Rating . | . . . . Part Studies Acquired . | . . . . Parts Repaired 1 | . 1 . . Time 26 | . 26 . . Parts Recycled . | . . . . Recycled Matter . | . . . . Retrieved Matter . | . . . . Retrieved Components . | . . . . Parts Scanalyzed . | . . . . Part Schematics Acquired . | . . . . Parts Damaged . | . . . . Bothacking | -11 -10 -10 -10 ------------ Run | Yrd Mat Min Sub Used RIF Installer . | . . . . Robots Hacked . | . . . . Non-combat . | . . . . Combat . | . . . . Robot Hacks Applied . | . . . . Relay Couplers Released . | . . . . Fabnet Peak Effective % . | . . . . Robots Rewired . | . . . . Allies Hacked . | . . . . Hacks Repelled . | . . . . Allies | -11 -10 -10 -10 -------- Run | Yrd Mat Min Sub Total Allies 3 | . . 3 . Largest Group 3 | . . 3 2 Highest-Rated Group 40 | . . 40 32 Highest-Rated Ally 16 | . . 16 16 Total Orders 4 | . . 4 . STAY 2 | . . 2 . ROAM 1 | . . 1 . FOLLOW 1 | . . 1 . Ally Attacks 35 | . . 5 30 Total Damage 366 | . . . 366 Kills 3 | . . . 3 Allies Corrupted . | . . . . Allies Melted 1 | . . . 1 Intel | -11 -10 -10 -10 ------- Run | Yrd Mat Min Sub Active Infowar (turns) 2704 | 55 529 880 1240 Terrain 801 | . . 1 800 Seismic 1903 | 55 529 879 440 Robot Analysis Total . | . . . . Derelict Logs Recovered 3 | . . 1 2 Drone Launches . | . . . . Drone Recoveries . | . . . . Exploration | -11 -10 -10 -10 ------------- Run | Yrd Mat Min Sub Turns Passed 3298 | 143 529 880 1746 Spaces Moved 2139 | 71 367 676 1025 Core 14 | 8 . . 6 Treads . | . . . . Legs 1730 | 63 367 676 624 Wheels 395 | . . . 395 Hover . | . . . . Flight . | . . . . Fastest Speed 50 | 50 120 120 95 Average Speed 129 | 113 120 120 139 Slowest Speed 250 | 120 120 120 250 Overloaded Moves . | . . . . Propulsion Burnouts . | . . . . Robots Hopped . | . . . . Potential Cave-ins . | . . . . Cave-ins Triggered . | . . . . Exploration Rate (%) 57 | 3 56 99 71 Regions Visited 3 Branch Regions 2 Pre-discovered Areas 1 | . . 1 . Known Exits Taken 1 | . 1 . . Unknown Exits Taken 2 | 1 . 1 . Scrap Searched 11 | . . 2 9 Spaces Dug . | . . . . Terrain Destroyed 49 | . . . 49 Melee . | . . . . Projectile 1 | . . . 1 AOE 48 | . . . 48 Terrain Rammed . | . . . . Walls Destroyed . | . . . . Machines Disabled . | . . . . Actions | -11 -10 -10 -10 --------- Run | Yrd Mat Min Sub Total 2430 | 100 425 716 1189 Wait 53 | . 32 3 18 Move 2136 | 70 366 675 1025 Hop . | . . . . Pick Up 35 | 7 7 4 17 Fast Attach 13 | 7 . 1 5 Attach 12 | . . . 12 Detach . | . . . . Swap 23 | . . 7 16 Drop 26 | 1 4 9 12 Fire 131 | 15 16 17 83 Melee . | . . . . Ram . | . . . . Kick . | . . . . Crush . | . . . . Escape Stasis . | . . . . Rewire . | . . . . Trap . | . . . . Miscellaneous 1 | . . . 1 Route ------- -11/Scrapyard -10/Materials (discovered 3 exits: [*Mat] / *Min x2) -10/Mines (discovered 3 exits: [*Mat x2] / *Sub) -10/Subcaves (discovered 1 exit: [*Mat]) History --------- Turn | Location | Event 14 | -11/Scrapyard | Discovered new exit (range 15) 144 | -11/Scrapyard | Entered Materials 322 | -10/Materials | Build established: Mutant 330 | -10/Materials | Discovered new exit (range 4) 412 | -10/Materials | Repaired Aluminum Leg 468 | -10/Materials | Discovered new exit (range 13) 475 | -10/Materials | Identified exit to Mines 673 | -10/Materials | Entered Mines 813 | -10/Mines | Found a damaged Exp. Sensor Array with a note attached 818 | -10/Mines | Found Prototype Device 832 | -10/Mines | Received a Rocket Launcher from a helpful Derelict 907 | -10/Mines | Discovered new exit (range 7) 915 | -10/Mines | Discovered new exit (range 9) 1008 | -10/Mines | Build established: Scavenger-Mutant 1008 | -10/Mines | Discovered new exit (range 9) 1009 | -10/Mines | Learned location of Storage (-7) 1076 | -10/Mines | Assisted by bots powering up and referring to "LRC-V3" 1201 | -10/Mines | Found a hidden stash of uninstalled traps 1553 | -10/Mines | Entered Subcaves 1553 | -10/Subcaves | Accompanied by 2 allies 1554 | -10/Subcaves | Approached by a straggling Scientist 1781 | -10/Subcaves | Discovered new exit (range 7) 1800 | -10/Subcaves | Shifting Twisted Machinery released Sub. Beam Cannon 1853 | -10/Subcaves | Shifting Twisted Machinery released Sub. Machine Gun 1894 | -10/Subcaves | Lost 3 allies 2053 | -10/Subcaves | Released subatomizers from SUBCON Basin 2757 | -10/Subcaves | Core integrity fell below 50% 2763 | -10/Subcaves | A Subdweller sparked back to life 2763 | -10/Subcaves | A Subdweller sparked back to life 2786 | -10/Subcaves | Ambushed by Subdweller buried in earth 2786 | -10/Subcaves | Ambushed by Subdweller buried in earth 2802 | -10/Subcaves | Core integrity fell below 20% 2851 | -10/Subcaves | Lost 9 parts (1p4n4w) 2959 | -10/Subcaves | Learned Materials terminal intel 3016 | -10/Subcaves | Shifting Twisted Machinery released Sub. Optics 3029 | -10/Subcaves | Shifting Twisted Machinery released Sub. Laser 3281 | -10/Subcaves | Ambushed by Subdwellers from Twisted Machinery 3299 | -10/Subcaves | Destroyed by LC-2PU(R) with Subdweller Laser Last Messages --------------- Sub. Laser falls loose from the Twisted Machinery. Acquired 7 matter. Acquired 15 matter. Acquired 12 matter. Dropped Sub. Power Source. Acquired Lgt. Ion Engine. Acquired 8 matter. Acquired 10 matter. 8A-4ZZ(R) destroyed. Acquired Sub. Beam Cannon. Acquired 28 matter. Dropped Sub. Monowheel. Acquired Sub. Monowheel. Acquired 10 matter. M2-872(u) builds Twisted Machinery. Sub. Monowheel shoots sparks and powers down. Dropped Broken Sub. Monowheel. GZ-231(u) builds Twisted Machinery. Wheel destroyed. Map ----- +----------------------------------------------------+ | ???????????????????????????????????????????? | | ???????????????????????????????????????????? | | ???????????????????????????????????????????? | | ???????????????????????????????????????????? | | ???????????????????????????????????????????? | | ???????????????????????????????????????????? | | ???????????????????????????????????????????? | | ???????????????????????????????????????????? | | ???????????????????????????????????????????? | | ???????????????????????????????????????????? | | ???????????????????????????????????????????? | | ???????????????????????"???????????????????? | | ??????????????????????" ???????????????????? | | ????????????? ???????"" ???????????????????? | | ??????????????????? "" ??????#????????????? | | ????????????#????? " ???????????????????? | | ???????????????????"" ????????????????????? | | ???????????????????" ????????????????????? | | ??????????????????? ????????????????????? | | ??????????????????? #?#??????????????????? | | ??????????????????? ####?????????????????? | | ??????????????????? #????###??????????? | | ???????????????#???# #?## #??????#???? | | ????????????#??????# ## #???????????? | | ????????????##????##RR #???????????? | | ???????????#?????##@ #?????#?????? | | ??????????????????# #???#????????? | | ??????????????????# ####??????????? | | ?????????????###??## ###?????????????? | | ?????????????#" ##" ##??????????????? | | ???????????????# ##### ##??###????????? | | ???????????????##"#" ## ## #?## ##???????? | | ????????????????### # ### ##??????? | | ?????????????????# ## #????### | | ?????????#???????# ## ###### # | | ?????????#???????## ## # ## # | | ????????????#?????## # | | ?????????????????#?# | | ???????????????????# #### # | | ???????????????????# ## #??#### | | ???????????????#???###### ###???# ### | | ????????????????????????# #???###?? | | ????????????????????????# #???????? | | ????????????????????????## ## ##???????? | | ?????????????????????????## #####????????? | | ???????????????#??????????#####????????????? | | ???????????????????????????????????????????? | | ??????????????????????#??????#?????????????# | | ???????????????????????????????#???????#???? | | ???????????????????????????????????????????? | +----------------------------------------------------+ Best States ------------- Heat Dissipation 25 Energy Generation 15 Energy Capacity 250 Matter Stores 300 Matter Capacity 300 Sight Range 16 Terrain Scan Range 16 Terrain Scan Density 10 Evasion (%) 55 Item Schematics ----------------- None Robot Schematics ------------------ None Fabricated ------------ Nothing Repaired ---------- Aluminum Leg | 66% | -10/Materials Studied --------- None Alien Tech Used ----------------- None Achievements -------------- Do Not Disturb Challenges ------------ None Game ------ Seed ComponentQuantumDeflector Manual? 0 Play Time 00:38:37 Cumulative 12.6 hours Start 2026.08.06 @ 19:23:33 End 2026.08.06 @ 20:08:09 Sessions 1 Manual Loads 0 Difficulty Rogue Special Mode None Game No. 5 Rogue 1 Adventurer 4 Explorer 0 Win Type - Total 0 Types 0/0/0/0/0/0/0/0/0/0 Lore% 10 Gallery% 13 Achievement% 13 Wizard Run 0 Options --------- Layout 1 ASCII 0 Keyboard 0 Movement Mouse Keybinds 0 Fullscreen 1 Font 32/SmallcapsGlow Map View 50x35 Zoom Use 0% Tactical HUD 0 Map Filters NONE Filters NONE Steam 1 RUN: e759285e-cb44-4447-8c91-54710931832b